bitfinex/quotes_ETHUSD_20251111
["timestamp","ask_amount","ask_price","bid_price","bid_amount"]
[1762886216110,0.26641982,3469.8,3469.2,2.88245262]
[1762886216413,0.26641982,3469.8,3469.1,0.5505]
[1762886216414,0.26641982,3469.7,3469.1,0.1127]
[1762886216568,0.26641982,3469.6,3469.1,3.40074903]
[1762886216767,0.26641982,3469.5,3469.2,2.88249513]
[1762886216963,0.26641982,3469.4,3469.3,2.88242584]
[1762886217210,0.26641982,3469.4,3469.2,1.11001724]
[1762886217418,7.10097788,3470.8,3469.4,0.405504]
[1762886217597,0.94775644,3470.7,3469.9,0.3768]
[1762886217798,0.26675644,3470.6,3469.9,0.3768]
[1762886217980,1.8147408,3470.7,3469.9,0.3768]
[1762886217981,0.26675644,3470.5,3469.9,0.3768]
[1762886218167,0.26675644,3470.4,3469.9,0.3768]
[1762886218510,0.26675644,3470.3,3469.9,0.3768]
[1762886218693,0.26675644,3470.2,3469.9,0.8146]
[1762886218866,0.26675644,3470.1,3469.9,0.8146]
[1762886219074,0.26675644,3470.0,3469.9,3.28743143]
[1762886219386,0.26675644,3470.0,3469.9,0.405504]
[1762886219581,0.26675644,3470.0,3469.9,4.16303143]
[1762886220423,0.26675644,3470.0,3469.9,1.281104]
[1762886220644,0.26675644,3470.0,3469.9,0.4378]
[1762886220938,0.26675644,3470.0,3468.9,0.681]
[1762886221141,0.26675644,3469.9,3469.5,2.88219279]
[1762886221334,7.76521868,3470.6,3469.5,2.88219279]
[1762886221335,0.26675644,3469.8,3469.6,0.5485]
[1762886221637,0.26675644,3469.7,3469.6,0.5485]
[1762886221823,0.26675644,3469.7,3469.6,0.1107]
[1762886222024,0.26675644,3469.7,3469.6,0.5485]
[1762886222238,0.26675644,3469.7,3469.6,0.9863]
[1762886223041,0.26675644,3469.7,3469.6,0.5485]
[1762886223405,0.26675644,3469.7,3469.2,0.405504]
[1762886223608,0.26675644,3469.6,3469.2,0.405504]
[1762886223906,0.26675644,3469.5,3469.1,0.1127]
[1762886224114,0.26675644,3469.4,3469.1,0.1127]
[1762886224311,0.26675644,3469.3,3469.1,0.1127]
[1762886224518,0.26675644,3469.2,3469.1,0.1127]
[1762886224919,0.26675644,3469.2,3469.1,0.5505]
[1762886226345,0.26675644,3469.2,3469.1,4.27639602]
[1762886226511,0.26675644,3469.2,3469.1,1.393804]
[1762886226850,0.26675644,3469.2,3469.1,4.27639602]
[1762886227012,0.26675644,3469.2,3469.1,5.00347388]
[1762886228666,0.26675644,3469.2,3469.1,2.12088186]
[1762886228819,0.26675644,3469.2,3469.1,5.00347388]
[1762886229448,0.26675644,3469.2,3469.1,2.12088186]
[1762886229622,0.26675644,3469.2,3469.1,4.27639602]
[1762886232465,0.26675644,3469.2,3469.1,4.95739602]
[1762886233176,0.002,3469.4,3469.3,3.28792984]
[1762886233335,0.27120874,3469.4,3469.3,3.72572984]
[1762886233669,0.27120874,3469.4,3469.3,0.843304]
[1762886233843,0.27120874,3469.4,3469.3,4.17779755]
[1762886234169,0.002,3469.4,3469.3,4.61559755]
[1762886234374,0.27147317,3469.4,3469.3,4.61559755]
[1762886235469,0.27173598,3469.4,3469.3,5.91559755]
[1762886236067,0.002,3469.4,3469.3,5.91559755]
[1762886236388,0.002,3469.4,3469.0,0.001]
[1762886236389,0.27173715,3469.4,3469.0,0.001]
[1762886236690,0.26973715,3469.3,3469.0,0.406504]
[1762886236866,0.26973715,3469.2,3469.0,0.406504]
[1762886237049,0.002,3469.4,3469.0,3.28911902]
[1762886237253,0.002,3469.4,3469.3,3.72572984]
[1762886237568,0.002,3469.4,3469.3,0.843304]
[1762886237943,0.002,3469.4,3469.3,4.16352984]
[1762886238356,0.002,3469.4,3469.3,4.66352984]
[1762886238560,0.002,3469.4,3469.3,4.16352984]
[1762886238774,0.002,3469.4,3469.3,4.93623427]
[1762886238978,0.002,3469.8,3469.7,3.28759755]
[1762886239135,0.002,3469.8,3469.7,4.74799755]
[1762886239480,0.1977,3471.8,3471.0,2.88095783]
[1762886239693,0.1977,3472.3,3471.3,2.8807648]
[1762886239855,0.492,3472.2,3471.2,0.405504]
[1762886240172,0.1977,3472.3,3471.2,0.405504]
[1762886240372,0.1977,3472.3,3471.2,0.843304]
[1762886240547,0.1977,3472.3,3471.3,0.43431165]
[1762886240873,0.002,3474.0,3471.9,2.88021276]
[1762886240874,0.1977,3472.7,3471.9,2.88021276]
[1762886241076,0.1977,3472.7,3471.8,2.88031915]
[1762886241375,0.1977,3472.7,3471.6,0.843304]
[1762886241574,0.1977,3472.7,3471.8,0.405504]
[1762886241777,0.1977,3472.7,3471.9,2.88021479]
[1762886241977,0.68,3472.8,3471.9,2.88021479]
[1762886241978,0.492,3473.3,3472.5,2.8797072]
[1762886242139,0.492,3473.3,3472.6,0.1107]
[1762886242578,0.1977,3473.5,3472.7,0.43430003]
[1762886242739,0.1977,3473.5,3471.9,0.66039496]
[1762886242740,0.6573,3472.8,3471.9,0.66039496]
[1762886242951,0.3661,3472.7,3472.1,0.405504]
[1762886243201,0.1977,3472.8,3472.1,0.1107]
[1762886243557,0.1977,3472.8,3472.2,3.28544574]
[1762886243788,0.1977,3472.8,3472.2,0.405504]
[1762886244199,0.492,3473.4,3472.3,2.87987918]
[1762886244381,0.492,3473.4,3472.2,3.28545959]
[1762886244586,0.492,3473.4,3472.5,2.87971236]
[1762886244819,0.492,3473.4,3472.5,0.405504]
[1762886245315,0.492,3473.4,3472.3,0.405504]
[1762886245590,0.492,3473.4,3472.2,0.405504]
[1762886245591,1.1337408,3473.2,3472.2,0.405504]
[1762886245770,1.1337408,3473.2,3472.2,1.705504]
[1762886245965,0.002,3472.7,3472.2,1.705504]
[1762886246172,0.002,3472.7,3472.2,1.3]
[1762886246173,0.6719,3472.3,3472.2,1.3]
[1762886246394,0.6719,3472.3,3471.2,0.4378]
[1762886246395,2.88035636,3471.8,3470.4,0.1107]
[1762886246645,1.8137408,3471.7,3470.4,0.1107]
[1762886246767,1.8137408,3471.7,3470.5,0.4378]
[1762886246768,0.68,3471.6,3470.5,0.4378]
[1762886247174,0.68,3471.6,3470.7,2.88120551]
[1762886247502,0.68,3471.6,3470.8,0.405504]
[1762886247673,0.4588,3471.5,3470.4,0.1107]
[1762886247997,0.4588,3471.5,3470.5,0.405504]
[1762886248472,0.6719,3470.6,3470.1,0.001]
[1762886248661,0.1939,3470.6,3470.1,0.001]
[1762886248861,0.1939,3470.6,3470.1,0.1117]
[1762886249108,0.68,3470.8,3470.1,0.1117]
[1762886249390,0.68,3470.8,3470.1,2.99340501]
[1762886249992,0.1939,3470.9,3470.1,0.1117]
[1762886250198,0.8739,3470.9,3470.1,0.1117]
[1762886250417,0.8739,3470.9,3470.1,2.99344059]
[1762886250893,0.8739,3470.9,3470.2,2.88167406]
[1762886251099,0.8739,3470.9,3470.1,2.99344914]
[1762886251786,0.8739,3470.9,3470.2,2.88167329]
[1762886251992,0.1939,3470.9,3470.2,2.88167329]
[1762886252161,0.1939,3470.9,3470.2,0.405504]
[1762886252563,0.68,3471.3,3470.5,0.405504]
[1762886252790,0.68,3471.2,3470.4,0.405504]
[1762886253264,0.68,3471.2,3470.1,3.43123829]
[1762886253486,0.68,3471.2,3470.5,0.405504]
[1762886253687,0.68,3471.3,3470.5,3.2869062]
[1762886253887,0.68,3471.3,3470.6,2.88134315]
[1762886254510,0.1939,3471.7,3470.8,2.8811249]
[1762886254898,0.1939,3471.7,3470.9,0.405504]
[1762886255208,0.1939,3471.7,3471.0,0.405504]
[1762886255209,0.4588,3471.6,3471.0,0.405504]
[1762886255422,0.1939,3471.7,3471.0,2.88100244]
[1762886255600,0.1939,3471.7,3471.1,2.88091011]
[1762886255777,0.6527,3471.7,3471.0,0.405504]
[1762886256175,0.478,3471.1,3469.9,0.1082]
[1762886256422,0.478,3471.1,3470.1,0.1117]
[1762886256722,0.478,3471.1,3470.5,0.405504]
[1762886257333,0.1939,3471.7,3470.9,2.88109294]
[1762886257615,0.1939,3471.7,3470.7,2.88125476]
[1762886257616,0.1939,3471.7,3471.1,3.28638307]
[1762886257800,0.1939,3471.7,3471.2,2.88082337]
[1762886257992,0.1939,3471.7,3471.2,2.88077952]
[1762886258188,0.1939,3471.7,3471.2,0.405504]
[1762886258821,0.6708,3471.7,3471.0,0.405504]
[1762886259037,0.6708,3471.7,3471.1,0.405504]
[1762886259213,0.1939,3471.7,3471.1,0.1082]
[1762886259527,0.1939,3471.7,3471.1,2.98910446]
[1762886259687,0.1939,3471.7,3471.2,0.405504]
[1762886259887,0.1939,3471.7,3471.2,3.28634686]
[1762886260188,0.1939,3471.7,3471.3,2.88075768]
[1762886260387,0.1939,3471.7,3471.2,3.28633637]
[1762886260614,0.1939,3471.7,3471.2,0.405504]
[1762886260812,0.6708,3471.7,3471.2,0.405504]
[1762886260997,0.6708,3471.7,3471.1,3.3946045]
[1762886261205,0.6708,3471.7,3471.2,0.405504]
[1762886261421,0.6708,3471.7,3471.1,0.405504]
[1762886261625,0.6708,3471.7,3471.1,3.28641057]
[1762886261832,0.6708,3471.7,3471.2,2.88082324]
[1762886262138,0.1939,3472.3,3471.0,0.843304]
[1762886262437,1.3508,3472.3,3471.4,2.88062966]
[1762886262935,0.4769,3472.2,3471.4,2.88062966]
[1762886263144,0.4769,3472.2,3471.4,0.405504]
[1762886263456,0.6779,3471.5,3470.9,0.1082]
[1762886263748,0.3682,3471.4,3471.0,0.405504]
[1762886263936,0.8451,3471.4,3470.2,0.4378]
[1762886264242,0.8451,3471.4,3471.1,0.001]
[1762886264401,0.4769,3471.3,3471.1,0.001]
[1762886264602,0.4949,3471.2,3471.1,0.001]
[1762886265107,0.9718,3471.2,3471.1,0.001]
[1762886265610,0.1817,3471.5,3471.1,0.001]
[1762886266204,0.4962,3471.2,3471.1,0.001]
[1762886266707,0.9731,3471.2,3471.1,0.001]
[1762886267226,0.1817,3471.5,3471.1,0.001]
[1762886267408,0.4962,3471.2,3471.1,0.001]
[1762886267935,0.9731,3471.2,3471.1,0.001]
[1762886269101,0.4962,3471.2,3471.1,0.001]
[1762886269303,1.6531,3471.2,3471.1,0.001]
[1762886270316,1.1762,3471.2,3471.1,0.001]
[1762886270725,0.4962,3471.2,3471.1,0.001]
[1762886271051,0.68,3471.3,3471.1,0.001]
[1762886271224,0.68,3471.4,3471.1,0.001]
[1762886272344,0.4962,3471.2,3471.1,0.001]
[1762886273749,0.9731,3471.2,3471.1,0.001]
[1762886275254,1.24221268,3471.2,3471.1,0.001]
[1762886276354,5.2568016,3471.2,3471.1,0.001]
[1762886276529,11.96494118,3471.2,3471.1,0.001]
[1762886277335,4.51492093,3470.8,3470.7,0.001]
[1762886277547,5.83223361,3470.8,3470.7,0.001]
[1762886277851,2.91695348,3470.8,3470.7,0.001]
[1762886278833,1.77105348,3470.8,3470.7,0.001]
[1762886279045,1.40285348,3470.8,3470.7,0.001]
[1762886279355,2.08285348,3470.8,3470.7,0.001]
[1762886280455,2.54125348,3470.8,3470.7,0.001]
[1762886280966,1.40751268,3470.8,3470.7,0.001]
[1762886281367,1.40774744,3470.8,3470.7,0.001]
[1762886281671,4.77502757,3470.8,3470.7,0.001]
[1762886282028,5.90876837,3470.8,3470.7,0.001]
[1762886282660,6.40876837,3470.8,3470.7,0.001]
[1762886284052,3.02758824,3470.8,3470.7,0.001]
[1762886284293,5.90876837,3470.8,3470.7,0.001]
[1762886284969,2.34758824,3470.8,3470.7,0.001]
[1762886285170,3.02758824,3470.8,3470.7,0.001]
[1762886285559,5.90876837,3470.8,3470.7,0.001]
[1762886286074,3.02758824,3470.8,3470.7,0.001]
[1762886286976,1.86148824,3470.8,3470.7,0.001]
[1762886287170,2.08308824,3470.8,3470.7,0.001]
[1762886287770,1.40308824,3470.8,3470.7,0.4388]
[1762886287962,2.08308824,3470.8,3470.7,0.001]
[1762886288748,2.08308824,3470.8,3470.7,0.4388]
[1762886290584,0.26934744,3470.8,3470.7,1.282104]
[1762886290792,0.26934744,3470.8,3470.7,4.82741079]
[1762886292584,0.002,3472.2,3471.2,2.88084092]
[1762886292585,0.216,3471.6,3471.2,2.88084092]
[1762886292786,0.26920562,3471.5,3471.3,0.1082]
[1762886292998,0.26920562,3471.4,3471.3,0.1082]
[1762886293199,0.26920562,3471.4,3470.7,1.07054765]
[1762886293409,0.26920562,3471.3,3471.1,0.405504]
[1762886293562,0.26920562,3471.2,3471.0,0.1082]
[1762886293878,0.26920562,3471.1,3470.7,0.406504]
[1762886294187,0.26920562,3471.0,3470.7,0.001]
[1762886294396,0.26920562,3470.9,3470.7,0.001]
[1762886294693,0.26920562,3470.8,3470.7,0.4388]
[1762886295104,0.26920562,3470.8,3470.7,0.8766]
[1762886295307,0.26920562,3470.8,3470.7,4.85621935]
[1762886295490,0.26920562,3470.8,3470.7,4.82740672]
[1762886296359,0.26920562,3470.8,3470.7,4.38960672]
[1762886296562,0.68,3471.7,3470.8,3.28666312]
[1762886296771,0.26927343,3471.6,3470.9,2.881095]
[1762886296978,0.26927343,3471.5,3471.4,2.88068214]
[1762886297173,0.26927343,3471.5,3471.4,3.28618614]
[1762886297402,0.23,3472.4,3471.7,2.8804188]
[1762886297694,0.26912149,3472.1,3471.6,0.405504]
[1762886297895,0.26912149,3472.0,3471.6,0.405504]
[1762886298105,0.26912149,3471.9,3471.6,3.28601843]
[1762886298276,0.26912149,3471.8,3471.6,3.28601843]
[1762886298472,0.26912149,3471.7,3471.2,0.405504]
[1762886298772,0.4881,3472.2,3471.4,2.88067371]
[1762886299086,0.26900815,3472.1,3471.3,0.9371704]
[1762886299401,0.002,3472.2,3471.5,2.88054847]
[1762886299402,0.26900815,3472.0,3471.5,2.88054847]
[1762886299606,0.26900815,3471.9,3471.3,0.9371704]
[1762886299765,0.26900815,3471.8,3471.2,3.2863364]
[1762886299967,0.26900815,3471.7,3471.6,2.88051618]
[1762886300303,0.002,3472.2,3471.4,0.405504]
[1762886300504,0.26880688,3472.1,3471.6,3.31826662]
[1762886300820,0.26880688,3472.0,3471.7,2.88039721]
[1762886300971,0.26880688,3471.9,3471.7,0.66042856]
[1762886301171,0.002,3472.2,3471.7,0.405504]
[1762886301378,0.2688058,3472.1,3471.7,0.405504]
[1762886301582,0.2688058,3472.0,3471.6,0.1107]
[1762886301785,0.2688058,3471.9,3471.5,0.405504]
[1762886302088,0.2688058,3471.8,3471.1,3.8]
[1762886302298,0.2688058,3471.8,3471.0,0.1082]
[1762886302299,0.4584,3471.6,3471.0,0.1082]
[1762886302494,0.2688058,3471.5,3471.0,0.1082]
[1762886302679,0.2688058,3471.4,3470.7,0.001]
[1762886302872,0.2688058,3471.3,3470.7,0.001]
[1762886303067,0.2688058,3471.2,3470.7,0.001]
[1762886303268,0.2688058,3471.1,3470.7,0.001]
[1762886303490,0.4861,3471.4,3470.7,0.001]
[1762886303692,0.26873434,3471.3,3470.7,0.001]
[1762886303896,0.26873434,3471.2,3470.7,0.001]
[1762886304099,0.26873434,3471.1,3470.7,0.001]
[1762886304284,0.26873434,3471.0,3470.7,0.001]
[1762886304494,0.68,3471.2,3470.7,0.001]
[1762886304689,0.26873587,3471.1,3470.7,0.001]
[1762886304896,0.68,3471.2,3470.7,0.001]
[1762886304897,0.26873587,3471.0,3470.7,0.001]
[1762886305079,1.1661,3471.2,3470.7,0.001]
[1762886305282,0.26873674,3471.1,3470.7,0.001]
[1762886305485,0.26873674,3471.0,3470.7,0.001]
[1762886305690,0.474,3471.1,3470.7,0.001]
[1762886305906,0.26873527,3471.0,3470.7,0.001]
[1762886306103,0.68,3471.2,3470.7,0.001]
[1762886306309,0.26873521,3471.1,3470.7,0.001]
[1762886306510,0.26873521,3471.0,3470.7,0.001]
[1762886306673,0.68,3471.2,3470.7,0.001]
[1762886306873,0.26873463,3471.1,3470.7,0.001]
[1762886307079,0.26873463,3471.0,3470.7,0.001]
[1762886307280,1.154,3471.2,3470.7,0.001]
[1762886307477,0.2687695,3471.1,3470.7,0.001]
[1762886307689,0.2687695,3471.0,3470.7,0.001]
[1762886307893,0.68,3471.2,3470.7,0.001]
[1762886307894,0.474,3471.1,3470.7,0.001]
[1762886308090,0.26876889,3471.0,3470.7,0.001]
[1762886308406,0.68,3471.2,3470.7,0.001]
[1762886308609,0.26880917,3471.1,3470.7,0.001]
[1762886308777,0.26880917,3471.0,3470.7,0.001]
[1762886308979,1.154,3471.2,3470.7,0.001]
[1762886309179,0.26880924,3471.1,3470.7,2.88225629]
[1762886309375,0.26880924,3471.0,3470.7,2.88225629]
[1762886309579,0.1906,3471.8,3470.8,2.88118013]
[1762886309580,0.474,3471.5,3470.8,2.88118013]
[1762886309783,0.94881783,3471.4,3470.9,0.4378]
[1762886310006,0.26881783,3471.3,3470.7,2.88223233]
[1762886310214,0.26881783,3471.2,3470.7,2.88223233]
[1762886310417,0.26881783,3471.1,3470.7,2.88223233]
[1762886310631,0.26881783,3471.0,3470.7,0.7917947]
[1762886310931,0.68,3471.4,3470.7,3.6730264]
[1762886311126,0.26884207,3471.3,3470.7,0.7917947]
[1762886311331,0.26884207,3471.2,3470.7,0.001]
[1762886311532,0.26884207,3471.1,3470.7,0.001]
[1762886311695,0.26884207,3471.0,3470.7,0.001]
[1762886311895,1.154,3471.4,3470.7,2.88222701]
[1762886312133,0.26885669,3471.3,3470.7,2.88222701]
[1762886312330,0.26885669,3471.2,3470.7,2.88222701]
[1762886312536,0.26885669,3471.1,3470.7,2.88222701]
[1762886312723,0.26885669,3471.0,3470.7,0.001]
[1762886312923,1.154,3471.4,3470.7,0.001]
[1762886313102,0.26890904,3471.3,3470.7,0.001]
[1762886313297,0.26890904,3471.2,3470.7,2.88223984]
[1762886313503,0.26890904,3471.1,3470.8,2.8811669]
[1762886313697,0.68,3471.4,3470.8,2.8811669]
[1762886313698,0.26890904,3471.0,3470.8,2.8811669]
[1762886313904,0.474,3471.7,3470.8,2.8811669]
[1762886314213,0.26898651,3471.6,3470.7,0.001]
[1762886314399,0.94898651,3471.5,3470.7,0.001]
[1762886314603,0.26898651,3471.4,3470.7,0.001]
[1762886314828,0.26898651,3471.3,3470.7,0.001]
[1762886315013,0.26898651,3471.2,3470.7,0.001]
[1762886315218,0.26898651,3471.1,3470.7,2.88226146]
[1762886315405,0.26898651,3471.0,3470.7,2.88226146]
[1762886315615,0.26898651,3470.9,3470.7,2.88226146]
[1762886315821,1.154,3471.5,3470.7,2.88226146]
[1762886316012,0.26918446,3471.4,3470.7,2.88226146]
[1762886316212,0.26918446,3471.3,3470.7,2.88226146]
[1762886316520,0.26918446,3471.2,3470.7,2.88226146]
[1762886316732,0.26918446,3471.1,3470.7,2.88226146]
[1762886316916,0.26918446,3471.0,3470.7,0.001]
[1762886317115,0.26918446,3470.9,3470.7,0.001]
[1762886317315,0.26918446,3470.8,3470.7,0.001]
[1762886317520,0.26936594,3470.8,3470.7,2.88226314]
[1762886317833,0.26936594,3470.8,3470.7,5.33417414]
[1762886318034,0.68,3471.5,3470.9,2.88101832]
[1762886318353,0.26935648,3471.4,3470.8,3.31896154]
[1762886318554,0.26935648,3471.3,3470.9,2.88104408]
[1762886318724,0.26935648,3471.2,3470.9,2.88104408]
[1762886318910,0.26935648,3471.1,3471.0,2.88101411]
[1762886319315,0.26935648,3471.1,3471.0,3.31881411]
[1762886320059,0.26935648,3471.1,3471.0,0.4378]
[1762886320253,0.72225648,3471.1,3470.7,4.206504]
[1762886320416,0.26935648,3471.0,3470.7,3.801]
[1762886320615,0.26935648,3470.9,3470.7,3.801]
[1762886320852,0.26935648,3470.8,3470.7,3.801]
[1762886321056,0.72225648,3470.8,3470.7,3.801]
[1762886321370,0.72225648,3470.8,3470.7,0.001]
[1762886321519,0.26935648,3470.8,3470.7,0.001]
[1762886321934,0.72225648,3470.8,3470.7,0.001]
[1762886322121,1.19625648,3470.8,3470.7,0.001]
[1762886323117,5.21117741,3470.8,3470.7,0.001]
[1762886323628,5.7087859,3470.8,3470.7,0.001]
[1762886324846,5.2087859,3470.8,3470.7,0.001]
[1762886326330,4.94182093,3470.8,3470.7,0.001]
[1762886327718,5.44182093,3470.8,3470.7,0.001]
[1762886327920,4.94182093,3470.8,3470.7,0.001]
[1762886328325,5.44182093,3470.8,3470.7,0.001]
[1762886328527,4.94182093,3470.8,3470.7,0.001]
[1762886328866,2.0606408,3470.8,3470.7,0.001]
[1762886329071,2.7406408,3470.8,3470.7,0.001]
[1762886329384,5.62182093,3470.8,3470.7,0.001]
[1762886329662,6.12182093,3470.8,3470.7,0.001]
[1762886330355,5.05722723,3470.8,3470.7,0.001]
[1762886330562,6.23722723,3470.8,3470.7,0.001]
[1762886331843,6.12182093,3470.8,3470.7,0.001]
[1762886335364,6.39067294,3470.8,3470.7,0.001]
[1762886336854,5.89067294,3470.8,3470.7,0.001]
[1762886338236,5.89067294,3470.8,3470.6,0.001]
[1762886338237,5.89067294,3470.8,3470.0,1e-08]
[1762886338434,5.89067294,3470.8,3467.9,0.1082]
[1762886338435,2.88293404,3468.7,3467.9,0.1082]
[1762886338742,0.5,3469.2,3467.7,0.1082]
[1762886338743,1.1337408,3468.4,3467.7,0.1082]
[1762886338946,0.94885201,3468.3,3467.8,0.4388]
[1762886339153,0.26885201,3468.2,3467.8,0.4388]
[1762886339374,0.26885201,3468.1,3467.7,0.1082]
[1762886339542,0.68,3468.3,3467.7,0.1082]
[1762886339543,0.26885201,3468.0,3467.7,0.1082]
[1762886339749,0.94885201,3467.9,3467.7,0.1082]
[1762886340067,0.94885201,3467.8,3467.7,0.1082]
[1762886340444,0.94885201,3467.8,3467.7,0.547]
[1762886341473,0.26885201,3467.8,3467.7,3.8695558]
[1762886341804,0.68,3468.1,3467.7,1.6611406]
[1762886341964,0.68,3468.1,3467.8,0.4388]
[1762886342164,0.68,3468.1,3468.0,0.4388]
[1762886342372,0.94822287,3468.1,3468.0,0.8776]
[1762886342878,0.26822287,3468.1,3468.0,0.8776]
[1762886343084,0.68,3468.4,3468.0,1.26454555]
[1762886343281,0.26822287,3468.3,3468.1,0.5505]
[1762886343471,0.26822287,3468.2,3467.7,0.1082]
[1762886343818,0.26822287,3468.1,3467.4,0.1082]
[1762886344113,0.94822287,3468.0,3467.4,0.1082]
[1762886344268,0.26822287,3467.9,3467.4,0.1082]
[1762886344468,2.88284988,3468.8,3467.5,0.4388]
[1762886344692,1.1337408,3468.6,3467.5,3.32266936]
[1762886344895,3.8308625,3468.7,3467.5,3.32266936]
[1762886344896,0.2679368,3468.5,3467.6,3.51527022]
[1762886345078,1.8137408,3468.7,3467.4,0.1082]
[1762886345079,1.4016776,3468.4,3467.4,0.1082]
[1762886345268,0.9479368,3468.3,3467.4,0.1082]
[1762886345468,0.2679368,3468.2,3467.4,0.547]
[1762886345710,0.26785006,3468.1,3467.4,0.547]
[1762886345910,0.26785006,3468.0,3467.4,0.547]
[1762886346211,0.94785006,3467.9,3467.4,0.1082]
[1762886346369,0.94785006,3467.8,3467.4,0.1082]
[1762886346700,0.68,3467.8,3467.4,0.1082]
[1762886347126,0.26780927,3467.7,3467.4,0.1082]
[1762886347628,0.4785,3467.5,3466.4,0.4388]
[1762886347780,0.26780927,3467.4,3466.5,0.405504]
[1762886348131,0.94880927,3467.3,3466.4,0.4388]
[1762886348426,0.26780927,3467.2,3466.5,0.405504]
[1762886348626,0.26780927,3467.1,3466.6,2.88458961]
[1762886348798,0.26780927,3467.0,3466.6,3.32338961]
[1762886349115,0.26780927,3466.9,3466.7,0.4388]
[1762886349414,0.26780927,3466.8,3466.7,0.4388]
[1762886349822,0.26780927,3466.8,3466.7,0.8776]
[1762886350111,0.26780927,3466.8,3466.7,0.4388]
[1762886350614,0.94880927,3466.8,3466.3,0.4388]
[1762886350910,0.26780927,3466.7,3466.0,0.1082]
[1762886351075,0.681,3466.8,3466.0,0.547]
[1762886351076,0.26780927,3466.6,3466.0,0.547]
[1762886351413,0.26780927,3466.5,3466.0,0.547]
[1762886351580,0.26780927,3466.4,3466.0,0.547]
[1762886351908,0.26780927,3466.3,3466.1,2.88507486]
[1762886352117,0.26780927,3466.2,3466.0,0.547]
[1762886352317,0.681,3466.6,3466.0,0.547]
[1762886352318,0.26750951,3466.1,3466.0,0.547]
[1762886352483,0.26750951,3466.1,3466.0,3.43217022]
[1762886352685,0.26750951,3466.1,3466.0,0.9858]
[1762886352881,0.26750951,3466.1,3466.0,3.87097022]
[1762886353128,0.681,3466.7,3466.3,2.88490286]
[1762886353324,7.11732959,3467.5,3466.5,0.4388]
[1762886353325,0.26751093,3466.6,3466.5,0.4388]
[1762886353498,0.26751093,3466.6,3466.4,3.32360677]
[1762886353709,0.68,3466.8,3466.5,0.4388]
[1762886353924,0.68,3466.8,3466.7,0.4388]
[1762886354219,0.94744201,3466.8,3466.7,0.4388]
[1762886355322,0.94744201,3466.8,3466.1,0.844304]
[1762886355626,0.26744201,3466.7,3466.1,1.58524173]
[1762886355923,0.26744201,3466.6,3466.1,3.72938912]
[1762886356124,0.26744201,3466.5,3466.2,2.88500373]
[1762886356324,0.26734258,3466.4,3466.3,0.4388]
[1762886356525,0.26734258,3466.4,3466.3,3.32372052]
[1762886356825,0.26734258,3466.4,3466.3,4.79981573]
[1762886357137,0.355,3467.8,3466.3,1.50939121]
[1762886357441,0.75268413,3467.7,3466.5,0.405504]
[1762886357604,0.355,3467.8,3466.6,2.88467085]
[1762886357605,0.26738413,3467.6,3466.6,2.88467085]
[1762886357795,0.26738413,3467.5,3466.7,0.405504]
[1762886357992,0.26738413,3467.4,3466.7,0.405504]
[1762886358198,1.1337408,3467.7,3466.7,0.405504]
[1762886358199,0.26738413,3467.3,3466.7,0.405504]
[1762886358425,0.26738413,3467.2,3466.7,0.405504]
[1762886358630,0.26738413,3467.1,3466.9,2.88441512]
[1762886358825,0.26738413,3467.0,3466.8,2.88447339]
[1762886359028,0.26738413,3466.9,3466.7,3.72886628]
[1762886359209,0.26738413,3466.8,3466.7,4.39022734]
[1762886359629,0.26738413,3466.8,3466.7,1.94446506]
[1762886359845,0.26738413,3466.8,3466.7,0.8776]
[1762886360267,0.26738413,3466.8,3466.2,0.4388]
[1762886360561,0.26738413,3466.7,3466.2,0.4388]
[1762886360766,0.26738413,3466.6,3466.2,3.32372267]
[1762886360966,0.68,3467.1,3466.5,0.4388]
[1762886361122,0.26734907,3467.0,3466.5,0.4388]
[1762886361322,0.26734907,3466.9,3466.5,3.76227721]
[1762886361525,0.26734907,3466.8,3466.5,0.4388]
[1762886361818,0.26734907,3466.7,3466.5,0.4388]
[1762886362018,0.26734907,3466.6,3466.5,0.4388]
[1762886362327,0.26734907,3466.6,3466.5,3.32355407]
[1762886362549,0.26734907,3466.6,3466.5,4.38320111]
[1762886363161,0.26734907,3466.6,3466.5,1.49844704]
[1762886363359,0.26734907,3466.6,3466.5,4.38320111]
[1762886363567,0.26734907,3466.6,3466.5,4.78870511]
[1762886363753,0.26734907,3466.6,3466.5,1.90395104]
[1762886363958,0.26734907,3466.6,3466.5,4.78870511]
[1762886365446,0.26734907,3466.6,3466.5,5.28870511]
[1762886365655,0.1813,3468.1,3467.4,2.88396546]
[1762886365880,0.26799904,3468.0,3467.4,0.405504]
[1762886366218,0.369,3468.2,3466.5,0.62084704]
[1762886366219,0.6696,3467.5,3466.5,0.62084704]
[1762886366418,0.67189904,3467.4,3466.3,0.4388]
[1762886366706,0.67189904,3467.4,3465.7,2.99358047]
[1762886366707,1.1337408,3467.2,3465.7,0.1082]
[1762886367035,0.26799904,3467.1,3466.4,2.88475975]
[1762886367171,0.26799904,3467.0,3466.5,2.91354573]
[1762886367360,0.26799904,3466.9,3466.5,2.91354573]
[1762886367558,0.26799904,3466.8,3466.4,2.88483674]
[1762886367762,0.26799904,3466.7,3466.6,2.88467085]
[1762886368218,0.26799904,3466.7,3466.6,3.76227085]
[1762886368875,0.26799904,3466.7,3466.6,4.16777485]
[1762886369056,0.26799904,3466.7,3466.6,1.283104]
[1762886369264,0.26799904,3466.7,3466.6,0.844304]
[1762886369476,0.26799904,3466.7,3466.6,3.72897485]
[1762886369719,0.26799904,3466.7,3466.6,0.844304]
[1762886370602,0.26799904,3466.7,3466.6,4.16777485]
[1762886370822,0.26799904,3466.7,3466.6,4.97427027]
[1762886371728,0.26799904,3466.7,3466.6,11.60629986]
[1762886371932,3.35439602,3468.8,3467.5,0.405504]
[1762886372230,3.55139602,3468.8,3467.6,2.88381813]
[1762886372528,0.6685,3468.8,3467.7,2.88375204]